bitfinex/quotes_SOLUSD_20241013
["timestamp","ask_amount","ask_price","bid_price","bid_amount"]
[1728808244608,1.35888307,147.21,147.17,20.0]
[1728808246111,1.35888307,147.21,147.15,11.20687293]
[1728808246312,1.35888307,147.21,147.16,20.0]
[1728808248729,8.15198307,147.21,147.16,20.0]
[1728808252414,6.7934,147.2,147.15,20.0]
[1728808252714,1.35888307,147.19,147.15,20.0]
[1728808253614,1.35888307,147.2,147.16,1.35892445]
[1728808253934,1.35888307,147.2,147.15,20.0]
[1728808254144,1.35888307,147.2,147.15,21.35895104]
[1728808254817,1.35888307,147.2,147.15,20.0]
[1728808256245,1.35888307,147.2,147.15,21.35895059]
[1728808256548,8.15288307,147.19,147.13,20.0]
[1728808256715,1.35888307,147.19,147.13,32.56599433]
[1728808259645,1.35888307,147.19,147.14,3.53817241]
[1728808259954,1.35888307,147.19,147.15,23.53817241]
[1728808260120,1.35888307,147.19,147.16,3.53817241]
[1728808260324,1.35888307,147.19,147.15,20.0]
[1728808260525,1.35888307,147.19,147.16,3.53799942]
[1728808260735,1.35888307,147.19,147.15,20.0]
[1728808260927,1.35888307,147.19,147.16,3.53806128]
[1728808261248,1.35888307,147.19,147.15,20.0]
[1728808264142,8.15288307,147.19,147.15,20.0]
[1728808264855,8.15288307,147.19,147.13,11.20687293]
[1728808265223,8.15288307,147.19,147.14,20.0]
[1728808266338,8.15288307,147.19,147.13,20.0]
[1728808266743,8.15288307,147.19,147.12,11.20687293]
[1728808266945,1.35888307,147.19,147.14,20.0]
[1728808268052,1.35888307,147.19,147.14,21.35907263]
[1728808268426,1.35888307,147.19,147.14,20.0]
[1728808268748,1.35888307,147.19,147.14,21.35907226]
[1728808269329,1.35888307,147.19,147.14,20.0]
[1728808269837,1.35888307,147.19,147.14,21.35907266]
[1728808270660,1.35888307,147.19,147.14,20.0]
[1728808271433,1.35888307,147.19,147.14,21.35907367]
[1728808272042,1.35888307,147.19,147.14,20.0]
[1728808272646,1.35888307,147.19,147.14,21.35907279]
[1728808272841,1.35888307,147.19,147.14,20.0]
[1728808274349,1.35888307,147.19,147.12,34.98375693]
[1728808274551,1.35888307,147.21,147.13,20.0]
[1728808274846,21.986,147.18,147.13,20.0]
[1728808275048,1.35888307,147.17,147.13,20.0]
[1728808275262,1.35888307,147.17,147.12,20.0]
[1728808275436,1.35888307,147.17,147.1,11.20687293]
[1728808275953,8.15368307,147.17,147.1,11.20687293]
[1728808276941,8.15368307,147.17,147.11,20.0]
[1728808277650,1.35888307,147.17,147.09,20.0]
[1728808277850,6.7953,147.16,147.06,11.2148]
[1728808278061,8.15468307,147.15,147.07,11.20687293]
[1728808278942,1.35888307,147.14,147.07,11.20687293]
[1728808279463,1.35888307,147.14,147.08,20.0]
[1728808280727,1.35888307,147.14,147.09,20.0]
[1728808280929,1.35888307,147.14,147.1,1.35947839]
[1728808281432,1.35888307,147.14,147.1,21.35947839]
[1728808281631,6.7953,147.16,147.1,21.35947839]
[1728808281846,1.35888307,147.15,147.1,21.35947839]
[1728808288736,1.35888307,147.15,147.11,1.35946031]
[1728808290954,1.35888307,147.16,147.11,1.35946031]
[1728808297252,1.35888307,147.15,147.11,1.35946031]
[1728808301780,1.35888307,147.15,147.1,20.0]
[1728808303977,1.35888307,147.15,147.11,1.35934342]
[1728808305152,1.35888307,147.15,147.1,20.0]
[1728808305648,1.35888307,147.15,147.11,1.35935344]
[1728808307079,1.35888307,147.15,147.1,20.0]
[1728808307553,1.35888307,147.15,147.11,1.35931539]
[1728808307755,1.35888307,147.15,147.1,20.0]
[1728808309053,1.35888307,147.15,147.09,11.20687293]
[1728808309054,1.35888307,147.15,147.07,20.0]
[1728808309256,6.7958,147.15,147.09,20.0]
[1728808309456,1.35888307,147.14,147.09,21.35944514]
[1728808313285,6.7954,147.16,147.09,32.56631807]
[1728808313589,1.35888307,147.17,147.13,11.20687293]
[1728808313752,21.986,147.18,147.14,1.35906173]
[1728808313949,15.9366,147.18,147.14,32.56593466]
[1728808314383,1.35888307,147.21,147.15,11.20687293]
[1728808314550,1.35888307,147.21,147.16,12.56566779]
[1728808318986,1.35888307,147.21,147.16,1.35879486]
[1728808319161,1.35888307,147.21,147.15,11.20687293]
[1728808319360,1.35888307,147.21,147.16,20.0]
[1728808322269,1.35888307,147.21,147.17,1.35881347]
[1728808323386,1.35888307,147.21,147.16,20.0]
[1728808324185,1.35888307,147.21,147.16,21.35881339]
[1728808327867,7.85808307,147.22,147.17,11.20687293]
[1728808328067,6.4992,147.22,147.18,12.56556444]
[1728808328276,15.1682,147.23,147.19,11.20687293]
[1728808328480,16.52708307,147.23,147.18,11.20687293]
[1728808328793,16.52708307,147.23,147.19,1.35863509]
[1728808329777,15.1682,147.23,147.19,1.35863509]
[1728808329980,15.1682,147.23,147.19,12.56550802]
[1728808330399,1.35888307,147.24,147.2,11.20687293]
[1728808330570,1.35888307,147.26,147.21,12.56533335]
[1728808330969,8.14958307,147.26,147.21,20.0]
[1728808332080,6.7911,147.25,147.2,20.0]
[1728808332274,1.35888307,147.24,147.2,20.0]
[1728808333392,1.35888307,147.24,147.2,21.35847264]
[1728808334315,1.35888307,147.24,147.2,20.0]
[1728808335196,1.35888307,147.24,147.2,21.35846773]
[1728808337697,1.35888307,147.24,147.18,20.0]
[1728808337903,8.15058307,147.24,147.18,20.0]
[1728808338101,8.15058307,147.24,147.17,34.98375693]
[1728808338782,8.15058307,147.24,147.17,11.20687293]
[1728808339308,8.15058307,147.24,147.18,20.0]
[1728808350788,8.15058307,147.24,147.17,20.0]
[1728808352109,1.35888307,147.24,147.17,20.0]
[1728808352294,22.4673,147.22,147.17,20.0]
[1728808352486,1.35888307,147.21,147.14,20.0]
[1728808352688,1.35888307,147.21,147.16,20.0]
[1728808353812,8.15198307,147.21,147.14,31.20687293]
[1728808358319,13.0865,147.2,147.14,20.0]
[1728808358513,1.35888307,147.19,147.14,20.0]
[1728808361392,1.35888307,147.19,147.15,1.35898241]
[1728808362993,1.35888307,147.19,147.14,20.0]
[1728808363722,1.35888307,147.19,147.15,1.35895837]
[1728808364520,6.293,147.2,147.15,1.35895837]
[1728808364819,1.35888307,147.19,147.15,1.35895837]
[1728808367017,1.35888307,147.19,147.14,31.20687293]
[1728808367919,1.35888307,147.19,147.14,20.0]
[1728808368306,1.35888307,147.19,147.15,1.35892773]
[1728808369101,1.35888307,147.19,147.14,20.0]
[1728808370919,1.35888307,147.19,147.15,1.35895523]
[1728808372403,1.35888307,147.19,147.14,20.0]
[1728808372605,1.35888307,147.19,147.15,1.35895492]
[1728808375832,7.65188307,147.2,147.15,1.35895492]
[1728808378907,7.65188307,147.2,147.14,20.0]
[1728808379331,7.65188307,147.2,147.15,1.35889241]
[1728808379528,7.65188307,147.2,147.14,20.0]
[1728808380328,7.65188307,147.2,147.15,1.35889261]
[1728808381533,7.65188307,147.2,147.14,20.0]
[1728808381938,7.65188307,147.2,147.15,1.35890166]
[1728808383138,7.65188307,147.2,147.15,4.87914111]
[1728808384738,7.65188307,147.2,147.15,3.52023945]
[1728808386420,7.65188307,147.2,147.16,1.35889254]
[1728808386918,7.65188307,147.2,147.15,3.52023945]
[1728808388024,7.65188307,147.2,147.15,4.8791331]
[1728808388418,7.65188307,147.2,147.15,3.52023945]
[1728808389348,1.35888307,147.19,147.15,3.52023945]
[1728808390324,1.35888307,147.19,147.15,4.87918827]
[1728808391248,1.35888307,147.19,147.15,1.35894882]
[1728808391735,6.293,147.2,147.15,1.35894882]
[1728808393548,1.35888307,147.21,147.16,3.52463903]
[1728808393927,1.35888307,147.21,147.16,23.776884]
[1728808394542,1.35888307,147.21,147.15,23.776884]
[1728808394740,1.35888307,147.21,147.16,3.52569281]
[1728808395035,1.35888307,147.21,147.15,23.776884]
[1728808395216,23.82608307,147.22,147.16,4.88441379]
[1728808395424,23.82608307,147.22,147.16,1.35872541]
[1728808395846,23.82608307,147.22,147.15,34.98375693]
[1728808396033,23.82608307,147.22,147.16,3.52680494]
[1728808396350,23.82608307,147.22,147.15,34.98375693]
[1728808396351,1.35888307,147.21,147.15,34.98375693]
[1728808396641,1.35888307,147.21,147.16,3.52775129]
[1728808396842,1.35888307,147.21,147.15,34.98375693]
[1728808397245,1.35888307,147.21,147.16,3.52775283]
[1728808397641,1.35888307,147.21,147.17,3.52885153]
[1728808398345,1.35888307,147.21,147.15,34.98375693]
[1728808398517,1.35888307,147.21,147.16,3.53095525]
[1728808398947,1.35888307,147.21,147.17,3.53095525]
[1728808399122,1.35888307,147.21,147.15,34.98375693]
[1728808399423,1.35888307,147.21,147.16,3.53139034]
[1728808399624,1.35888307,147.21,147.17,3.53139034]
[1728808399829,1.35888307,147.21,147.15,34.98375693]
[1728808400130,1.35888307,147.21,147.16,3.53128483]
[1728808400333,1.35888307,147.21,147.17,3.53128483]
[1728808400636,1.35888307,147.21,147.15,34.98375693]
[1728808400839,1.35888307,147.21,147.16,3.53150688]
[1728808401343,1.35888307,147.21,147.17,3.53150688]
[1728808401647,1.35888307,147.21,147.15,34.98375693]
[1728808402551,1.35888307,147.21,147.16,3.47379848]
[1728808402756,17.03338307,147.22,147.15,34.98375693]
[1728808403046,23.82598307,147.22,147.16,3.47365247]
[1728808403242,23.82598307,147.22,147.17,3.47403488]
[1728808403545,23.82598307,147.22,147.15,23.776884]
[1728808403745,6.7933,147.21,147.16,3.47409356]
[1728808404046,1.35888307,147.2,147.17,3.47409356]
[1728808404351,8.15228307,147.2,147.14,20.0]
[1728808404559,8.15228307,147.2,147.15,1.35888708]
[1728808404850,8.15228307,147.2,147.16,3.47450285]
[1728808405149,8.15228307,147.2,147.17,3.47450285]
[1728808405351,8.15228307,147.2,147.15,1.35888708]
[1728808405525,8.15228307,147.2,147.16,3.47501727]
[1728808405854,1.35888307,147.21,147.17,4.83390384]
[1728808406051,1.35888307,147.21,147.17,1.35888657]
[1728808406261,1.35888307,147.21,147.15,1.35882405]
[1728808406550,1.35888307,147.21,147.16,3.47553829]
[1728808406733,6.6261,147.2,147.14,20.0]
[1728808406939,1.35888307,147.19,147.15,3.47618097]
[1728808407134,22.9189,147.18,147.16,3.47618097]
[1728808407458,1.35888307,147.17,147.11,20.0]
[1728808407626,1.35888307,147.17,147.12,3.47683171]
[1728808407829,1.35888307,147.17,147.13,3.47683171]
[1728808408046,22.9189,147.18,147.14,4.8358975]
[1728808408243,22.9189,147.18,147.15,3.47683171]
[1728808408446,22.9189,147.18,147.16,3.47683171]
[1728808408629,22.9189,147.18,147.12,20.0]
[1728808408955,22.9189,147.18,147.13,3.47749552]
[1728808409157,22.9189,147.18,147.14,3.47749552]
[1728808409464,1.35888307,147.17,147.15,3.47749552]
[1728808409641,1.35888307,147.17,147.16,3.47749552]
[1728808410151,22.9189,147.18,147.16,3.47749552]
[1728808410351,1.35888307,147.17,147.12,20.0]
[1728808410550,1.35888307,147.17,147.13,3.47893378]
[1728808410853,1.35888307,147.17,147.14,3.47893378]
[1728808411058,1.35888307,147.17,147.15,3.47893378]
[1728808411262,1.35888307,147.17,147.12,20.0]
[1728808411547,1.35888307,147.17,147.13,4.83919615]
[1728808411857,1.35888307,147.17,147.14,3.48016159]
[1728808412150,1.35888307,147.17,147.15,3.48016159]
[1728808412356,8.15378307,147.17,147.1,11.20687293]
[1728808412668,8.15378307,147.17,147.11,3.48032039]
[1728808412862,8.15378307,147.17,147.12,4.83954951]
[1728808413034,8.15378307,147.17,147.13,3.48032039]
[1728808413234,8.15378307,147.17,147.14,3.48032039]
[1728808413450,8.15378307,147.17,147.15,3.48032039]
[1728808413652,8.15378307,147.17,147.12,1.35922912]
[1728808413863,8.15378307,147.17,147.13,3.47973273]
[1728808414030,24.27788307,147.18,147.14,3.47973273]
[1728808414342,24.27788307,147.18,147.15,3.47973273]
[1728808414539,24.27788307,147.18,147.11,31.20687293]
[1728808414742,24.27788307,147.18,147.12,3.47893557]
[1728808414930,24.27788307,147.18,147.13,3.47893557]
[1728808415254,24.27788307,147.18,147.14,3.47893557]
[1728808415469,24.27788307,147.18,147.15,3.47893557]
[1728808415764,24.27788307,147.18,147.11,31.20687293]
[1728808415939,24.27788307,147.18,147.12,3.47854607]
[1728808416133,24.27788307,147.18,147.13,3.47854607]
[1728808416335,24.27788307,147.18,147.14,3.47854607]
[1728808416535,24.27788307,147.18,147.15,3.47854607]
[1728808416750,24.27788307,147.18,147.11,31.20687293]
[1728808416951,24.27788307,147.18,147.12,4.83724742]
[1728808417254,24.27788307,147.18,147.13,3.47809256]
[1728808417441,6.7949,147.17,147.14,3.47809256]
[1728808417639,1.35888307,147.16,147.12,20.0]
[1728808417835,1.35888307,147.16,147.13,3.47772927]
[1728808418036,1.35888307,147.16,147.14,3.47772927]
[1728808418361,1.35888307,147.16,147.12,1.35923859]
[1728808418530,1.35888307,147.17,147.13,3.47733053]
[1728808418734,1.35888307,147.17,147.14,3.47733053]
[1728808418934,1.35888307,147.17,147.12,21.35923859]
[1728808419134,1.35888307,147.17,147.13,3.47733705]
[1728808419333,1.35888307,147.17,147.14,3.47733705]
[1728808419646,1.35888307,147.17,147.12,21.35923859]
[1728808419854,1.35888307,147.17,147.13,3.47705467]
[1728808420059,1.35888307,147.17,147.14,3.47705467]
[1728808420360,1.35888307,147.17,147.12,21.35923859]
[1728808420556,1.35888307,147.17,147.13,3.47682432]
[1728808420755,1.35888307,147.17,147.14,3.47682432]
[1728808420957,1.35888307,147.17,147.12,21.35923859]
[1728808421164,1.35888307,147.17,147.13,3.47690431]
[1728808421340,1.35888307,147.17,147.14,3.47690431]
[1728808421544,1.35888307,147.17,147.12,21.35923859]
[1728808421745,1.35888307,147.17,147.13,3.47666329]
[1728808421959,1.35888307,147.17,147.14,3.47666329]
[1728808422257,1.35888307,147.17,147.12,21.35923859]
[1728808422645,1.35888307,147.17,147.13,3.47644364]
[1728808422846,1.35888307,147.17,147.14,3.47644364]
[1728808423143,1.35888307,147.17,147.12,21.35923859]
[1728808423344,1.35888307,147.17,147.13,3.4763606]
[1728808423643,1.35888307,147.17,147.14,3.4763606]
[1728808423841,1.35888307,147.17,147.12,21.35923859]
[1728808424043,1.35888307,147.17,147.13,3.47626599]
[1728808424253,1.35888307,147.17,147.14,3.47626599]
[1728808424550,1.35888307,147.17,147.12,21.35923859]
[1728808424757,1.35888307,147.17,147.13,3.47607006]
[1728808424957,1.35888307,147.17,147.14,3.47607006]
[1728808425141,1.35888307,147.17,147.12,21.35923859]
[1728808425340,1.35888307,147.17,147.13,3.47600989]
[1728808425537,1.35888307,147.17,147.14,3.47600989]
[1728808425737,1.35888307,147.17,147.12,21.35923859]
[1728808425936,1.35888307,147.17,147.13,3.47589785]
[1728808426136,1.35888307,147.17,147.14,3.47589785]
[1728808426340,1.35888307,147.17,147.12,21.35923859]
[1728808426537,1.35888307,147.17,147.13,3.47575977]
[1728808426763,1.35888307,147.17,147.14,3.47575977]
[1728808427064,1.35888307,147.17,147.12,21.35918949]
[1728808427239,1.35888307,147.17,147.13,3.47575081]
[1728808427447,1.35888307,147.17,147.14,3.47575081]
[1728808427649,1.35888307,147.17,147.12,20.0]
[1728808427858,1.35888307,147.17,147.13,3.47566417]
[1728808428041,1.35888307,147.17,147.14,3.47566417]
[1728808428237,1.35888307,147.17,147.12,20.0]
[1728808428445,1.35888307,147.17,147.13,3.47557353]
[1728808428639,1.35888307,147.17,147.14,3.47557353]
[1728808428851,1.35888307,147.17,147.12,20.0]
[1728808429161,1.35888307,147.17,147.13,3.47549258]
[1728808429457,1.35888307,147.17,147.12,20.0]
[1728808429458,1.35888307,147.17,147.14,3.47549258]
[1728808429772,1.35888307,147.17,147.12,20.0]
[1728808429955,1.35888307,147.17,147.13,3.47542627]
[1728808430150,1.35888307,147.17,147.14,3.47542627]
[1728808430355,1.35888307,147.17,147.12,21.35918517]
[1728808430554,1.35888307,147.17,147.13,3.47533567]
[1728808430759,1.35888307,147.17,147.14,3.47533567]
[1728808430954,1.35888307,147.17,147.12,21.35918517]
[1728808431157,1.35888307,147.17,147.13,3.4752734]
[1728808431356,1.35888307,147.17,147.14,3.4752734]
[1728808431566,1.35888307,147.17,147.12,21.35918517]
[1728808431869,1.35888307,147.17,147.13,3.4753733]
[1728808432047,1.35888307,147.17,147.12,21.35918517]
[1728808432048,1.35888307,147.17,147.14,3.4753733]
[1728808432249,1.35888307,147.17,147.13,1.35918434]
[1728808432570,1.35888307,147.17,147.14,3.47528098]
[1728808432764,1.35888307,147.17,147.12,20.0]
[1728808432969,1.35888307,147.17,147.13,4.83446126]
[1728808433274,1.35888307,147.17,147.14,3.47527631]
[1728808433453,1.35888307,147.17,147.13,1.35918495]
[1728808433657,1.35888307,147.17,147.14,3.47521827]
[1728808433845,1.35888307,147.17,147.13,1.35918495]
[1728808434046,1.35888307,147.17,147.14,3.47529156]
[1728808434263,1.35888307,147.17,147.13,1.35918495]
[1728808434469,1.35888307,147.17,147.14,3.47521619]
[1728808434658,1.35888307,147.17,147.13,1.35918495]
[1728808434859,1.35888307,147.17,147.14,3.47518922]
[1728808435172,1.35888307,147.17,147.13,1.35918495]
[1728808435359,1.35888307,147.17,147.14,3.47517609]
[1728808435557,1.35888307,147.17,147.13,1.35918495]
[1728808435761,1.35888307,147.17,147.14,3.47504631]
[1728808435959,1.35888307,147.17,147.13,1.35918495]
[1728808436147,1.35888307,147.17,147.14,3.47505408]
[1728808436348,1.35888307,147.17,147.13,1.35918495]
[1728808436573,1.35888307,147.17,147.14,3.47493691]
[1728808436784,1.35888307,147.17,147.13,1.35918495]
[1728808437071,1.35888307,147.17,147.14,3.47494276]
[1728808437375,1.35888307,147.17,147.13,1.35918495]
[1728808437674,1.35888307,147.17,147.14,3.47489325]
[1728808437849,1.35888307,147.17,147.13,1.35918495]
[1728808438050,1.35888307,147.17,147.14,3.47488462]
[1728808438249,1.35888307,147.17,147.13,1.35918495]
[1728808438473,1.35888307,147.17,147.14,3.47488442]
[1728808438669,1.35888307,147.17,147.13,1.35918495]
[1728808438842,1.35888307,147.17,147.14,3.47496338]
[1728808439049,1.35888307,147.17,147.13,1.35918495]
[1728808439347,1.35888307,147.17,147.14,3.47496528]
[1728808439554,1.35888307,147.17,147.13,1.35918495]
[1728808439852,1.35888307,147.17,147.14,3.47492617]
[1728808440051,1.35888307,147.17,147.13,1.35918495]
[1728808440253,1.35888307,147.17,147.14,3.47485723]
[1728808440486,1.35888307,147.17,147.13,1.35918495]
[1728808440687,1.35888307,147.17,147.14,3.47486408]
[1728808440847,1.35888307,147.17,147.13,1.35918495]
[1728808441146,1.35888307,147.17,147.14,3.47481256]
[1728808441346,1.35888307,147.17,147.13,1.35918495]
[1728808441547,1.35888307,147.17,147.14,3.47489446]
[1728808441770,1.35888307,147.17,147.13,1.35918495]
[1728808441975,1.35888307,147.17,147.14,3.4748935]
[1728808442160,1.35888307,147.17,147.13,1.35918495]
[1728808442360,1.35888307,147.17,147.14,3.47490842]
[1728808442571,1.35888307,147.17,147.13,1.35918495]
[1728808442755,1.35888307,147.17,147.14,3.47491018]
[1728808442956,1.35888307,147.17,147.13,1.35918495]
[1728808443158,1.35888307,147.17,147.14,3.474908]
[1728808443456,1.35888307,147.17,147.13,1.35918495]
[1728808443656,1.35888307,147.17,147.12,20.0]
[1728808443875,1.35888307,147.17,147.13,3.47490722]
[1728808444167,1.35888307,147.17,147.14,3.47490722]
[1728808444369,1.35888307,147.17,147.12,20.0]
[1728808444667,1.35888307,147.17,147.13,4.83419762]
[1728808444879,1.35888307,147.17,147.14,3.47501607]
[1728808445049,1.35888307,147.17,147.12,1.35917881]
[1728808445244,1.35888307,147.17,147.13,3.47501267]
[1728808445456,1.35888307,147.17,147.14,3.47501267]
[1728808445656,1.35888307,147.17,147.12,1.35917881]
[1728808445857,1.35888307,147.17,147.13,3.47507582]
[1728808446050,1.35888307,147.17,147.14,3.47507582]
[1728808446268,1.35888307,147.17,147.12,1.35917881]
[1728808446476,1.35888307,147.17,147.13,3.47508532]
[1728808446777,1.35888307,147.17,147.14,3.47508532]
[1728808446981,24.27778307,147.18,147.12,12.56605174]
[1728808447271,17.48338307,147.18,147.13,3.47508161]
[1728808447474,17.48338307,147.18,147.14,4.83414061]
[1728808447656,17.48338307,147.18,147.14,1.359059]
[1728808448455,17.48338307,147.18,147.13,1.35905911]
[1728808448680,17.48338307,147.18,147.14,3.47517697]
[1728808448882,17.48338307,147.18,147.13,1.35905911]
[1728808449080,17.48338307,147.18,147.14,3.47466943]
[1728808449388,17.48338307,147.18,147.12,23.776884]
[1728808449569,17.48338307,147.18,147.13,3.4747085]
[1728808449770,17.48338307,147.18,147.14,3.4747085]
[1728808450074,17.48338307,147.18,147.12,23.776884]
[1728808450272,24.27778307,147.18,147.13,3.47467712]
[1728808450486,24.27778307,147.18,147.14,3.47467712]
[1728808450668,24.27778307,147.18,147.12,23.776884]
[1728808450975,24.27778307,147.18,147.13,3.4747955]
[1728808451160,24.27778307,147.18,147.14,3.4747955]
[1728808451358,24.27778307,147.18,147.12,23.776884]
[1728808451557,24.27778307,147.18,147.13,3.47501432]
[1728808451756,24.27778307,147.18,147.14,3.47501432]
[1728808451957,24.27778307,147.18,147.12,23.776884]
[1728808452180,24.27778307,147.18,147.13,3.47492462]
[1728808452375,24.27778307,147.18,147.14,3.47492462]
[1728808452662,24.27778307,147.18,147.11,31.20687293]
[1728808452869,24.27778307,147.18,147.12,3.47510349]
[1728808453082,24.27778307,147.18,147.13,3.47510349]
[1728808453386,24.27778307,147.18,147.11,31.20687293]
[1728808453387,24.27778307,147.18,147.14,3.47510349]
[1728808453682,24.27778307,147.18,147.12,1.35911379]
[1728808453988,24.27778307,147.18,147.13,3.47525523]
[1728808454163,24.27778307,147.18,147.14,3.47525523]
[1728808454361,24.27778307,147.18,147.12,1.35911215]
[1728808454581,24.27778307,147.18,147.13,3.47548052]
[1728808454785,24.27778307,147.18,147.14,3.47548052]
[1728808454964,24.27778307,147.18,147.11,31.20687293]
[1728808455285,24.27778307,147.18,147.12,3.4754933]
[1728808455464,24.27778307,147.18,147.13,3.4754933]
[1728808455786,24.27778307,147.18,147.14,4.83460535]
[1728808455980,24.27778307,147.18,147.14,1.35911205]
[1728808456179,24.27778307,147.18,147.12,1.35905777]
[1728808456388,24.27778307,147.18,147.13,3.47571285]
[1728808456563,24.27778307,147.18,147.14,4.83477097]
[1728808456884,24.27778307,147.18,147.14,1.35905812]
[1728808457084,24.27778307,147.18,147.12,1.35905903]
[1728808457301,24.27778307,147.18,147.13,3.4759745]
[1728808457471,24.27778307,147.18,147.14,4.83503363]
[1728808457668,24.27778307,147.18,147.14,1.35905913]
[1728808457869,24.27778307,147.18,147.12,1.35905926]
[1728808458166,24.27778307,147.18,147.13,3.47620141]
[1728808458368,24.27778307,147.18,147.14,4.83526062]
[1728808458569,24.27778307,147.18,147.14,1.35905921]
[1728808458771,24.27778307,147.18,147.12,1.35905943]
[1728808458968,24.27778307,147.18,147.13,3.47645807]
[1728808459181,24.27778307,147.18,147.14,4.83551775]
[1728808459483,24.27778307,147.18,147.11,31.20687293]
[1728808459683,24.27778307,147.18,147.12,3.4767694]
[1728808459892,24.27778307,147.18,147.13,3.4767694]
[1728808460193,24.27778307,147.18,147.14,3.4767694]
[1728808460395,24.27778307,147.18,147.11,31.20687293]
[1728808460568,24.27778307,147.18,147.12,3.47706529]
[1728808460768,24.27778307,147.18,147.13,3.47706529]
[1728808461097,24.27778307,147.18,147.14,3.47706117]
[1728808461272,24.27778307,147.18,147.15,3.4771268]
[1728808461475,24.27778307,147.18,147.11,31.20687293]
[1728808461796,24.27778307,147.18,147.12,3.47744502]
[1728808461976,24.27778307,147.18,147.13,7.01021027]
[1728808462293,24.27778307,147.18,147.14,7.01021027]
[1728808462474,24.27778307,147.18,147.15,7.01021027]
[1728808462674,24.27778307,147.18,147.11,31.20687293]
[1728808462889,24.27778307,147.18,147.12,7.01065858]
[1728808463070,24.27778307,147.18,147.13,7.01065858]
[1728808463267,24.27778307,147.18,147.14,7.01065858]
[1728808463485,24.27778307,147.18,147.15,7.01065858]
[1728808463695,24.27778307,147.18,147.11,31.20687293]
[1728808463989,24.27778307,147.18,147.12,7.0109123]
[1728808464174,24.27778307,147.18,147.13,7.0109123]
[1728808464376,24.27778307,147.18,147.14,8.37002682]
[1728808464578,24.27778307,147.18,147.15,7.0109123]
[1728808464783,24.27778307,147.18,147.12,1.35911281]
[1728808464984,24.27778307,147.18,147.13,7.01161622]
[1728808465172,24.27778307,147.18,147.14,3.47886871]
[1728808465372,24.27778307,147.18,147.15,3.47886871]
[1728808465583,24.27778307,147.18,147.14,3.53274141]
[1728808465783,24.27778307,147.18,147.15,3.47954876]
[1728808466094,24.27778307,147.18,147.14,3.53274141]
[1728808466269,24.27778307,147.18,147.15,3.47953907]
[1728808466474,24.27778307,147.18,147.14,3.53274141]
[1728808466696,24.27778307,147.18,147.15,3.48054472]
[1728808466898,24.27778307,147.18,147.14,3.53274141]
[1728808467092,24.27778307,147.18,147.15,3.4805449]
[1728808467299,24.27778307,147.18,147.14,3.53274141]
[1728808467475,24.27778307,147.18,147.15,3.4808515]
[1728808467671,24.27778307,147.18,147.16,3.4808515]
[1728808467875,24.27778307,147.18,147.14,3.53274141]
[1728808468200,24.27778307,147.18,147.15,3.48080858]
[1728808468398,24.27778307,147.18,147.16,3.48080858]
[1728808468702,24.27778307,147.18,147.14,3.53274141]
[1728808469087,24.27778307,147.18,147.15,3.48126699]
[1728808469296,24.27778307,147.18,147.16,3.48126699]
[1728808469496,24.27778307,147.18,147.14,3.53274141]
[1728808469704,24.27778307,147.18,147.15,3.48166757]
[1728808469885,6.7948,147.17,147.16,3.48166757]
[1728808473000,6.7948,147.17,147.14,3.53274141]
[1728808473300,6.7948,147.17,147.15,3.48248313]
[1728808473500,6.7948,147.17,147.16,3.48248313]
[1728808481687,17.48338307,147.18,147.16,3.48248313]
[1728808481882,1.35888307,147.17,147.12,1.35917284]
[1728808482077,1.35888307,147.17,147.13,3.48231547]
[1728808482287,1.35888307,147.17,147.14,3.48231547]
[1728808482500,1.35888307,147.17,147.15,3.48231547]
[1728808482704,1.35888307,147.17,147.12,1.35917284]
[1728808482705,1.35888307,147.17,147.16,3.48231547]
[1728808484395,16.1245,147.18,147.16,3.48231547]
[1728808484597,16.1245,147.18,147.14,1.35905902]
[1728808484800,16.1245,147.18,147.15,3.48263634]
[1728808485110,16.1245,147.18,147.16,3.48263634]
[1728808485291,16.1245,147.18,147.14,1.35905902]
[1728808485491,16.1245,147.18,147.15,3.48262071]
[1728808485698,16.1245,147.18,147.16,3.48262071]
[1728808485900,1.35888307,147.17,147.12,11.20687293]
[1728808486203,1.35888307,147.17,147.13,3.48277612]
[1728808486510,1.35888307,147.17,147.14,3.48277612]
[1728808486708,1.35888307,147.17,147.15,3.48277612]
[1728808486893,1.35888307,147.17,147.16,3.48277612]
[1728808487397,17.48338307,147.18,147.16,3.48277612]
[1728808487594,17.48338307,147.18,147.12,1.35908695]
[1728808487903,17.48338307,147.18,147.13,3.48276671]
[1728808488110,17.48338307,147.18,147.14,4.84182703]
[1728808488304,17.48338307,147.18,147.15,3.48276671]
[1728808488608,17.48338307,147.18,147.16,3.48276671]
[1728808488809,17.48338307,147.18,147.12,1.35906077]
[1728808489106,17.48338307,147.18,147.13,3.48277018]
[1728808489307,17.48338307,147.18,147.14,4.8418318]
[1728808489502,17.48338307,147.18,147.15,3.48277018]
[1728808489701,17.48338307,147.18,147.16,3.48277018]